fUSD/lending_fUSD_20240205
["ID","MTS","AMOUNT","RATE_DAILY","PERIOD"]
[313339286,1707171045681,-23160.791793,0.00039973,2]
[313339288,1707171045690,-569.51987199,0.0004,4]
[313339289,1707171045699,-350.09036543,0.0004,120]
[313339290,1707171045708,-2268.13129576,0.0004,4]
[313339291,1707171045717,-1083.5552476,0.0004,4]
[313339292,1707171045726,-155.0,0.0004,4]
[313339294,1707171045735,-54468.23709021,0.0004,4]
[313339296,1707171045744,-19370.6,0.0004,2]
[313339298,1707171045753,-155.14674875,0.0004,30]
[313339300,1707171045762,-19371.4,0.000405,2]
[313339302,1707171045771,-150.0,0.00040573,2]
[313339304,1707171045780,-154.95,0.00040645,2]
[313339306,1707171045790,-1023.16380065,0.00040677,3]
[313339309,1707171045799,-159.07478848,0.00040701,30]
[313339310,1707171045808,-19370.6,0.00041,2]
[313339313,1707171045818,-150.0,0.00041095,2]
[313339314,1707171045827,-824.0,0.00041165,7]
[313339316,1707171045836,-168.63,0.000415,7]
[313339318,1707171045845,-162.45,0.000415,7]
[313339320,1707171045854,-184.29365455,0.00041522,4]
[313339322,1707171045863,-474.27428328,0.00041817,14]
[313339324,1707171045872,-300.0,0.00042,2]
[313339326,1707171045881,-200.0,0.00042,7]
[313339328,1707171045890,-501.0,0.00042,2]
[313339330,1707171045899,-319.57,0.00042,7]
[313339332,1707171045909,-19370.4,0.00042,2]
[313339334,1707171045920,-159.07478848,0.00042079,30]
[313339335,1707171045932,-1000.0,0.00042344,4]
[313339336,1707171045941,-808.91210567,0.00042347,16]
[313339337,1707171045950,-1000.0,0.000426,39]
[313339338,1707171045959,-21961.0208999,0.00042787,2]
[313339339,1707171045968,-8901.89147123,0.00042817,3]
[313339340,1707171045977,-14842.0,0.00042817,4]
[313339341,1707171045986,-150.0,0.00043086,30]
[313339342,1707171045996,-223.58750295,0.000433,30]
[313339343,1707171046005,-300.0,0.00043835,2]
[313339344,1707171046015,-1168.61,0.00043836,15]
[313339345,1707171046024,-484.42712849,0.00044,120]
[313339346,1707171046034,-1023.16380065,0.00044233,6]
[313339347,1707171046044,-3029.2403701,0.00044724,11]
[313339348,1707171046053,-153.30459871,0.0004475,24]
[313339349,1707171046064,-4112.60881166,0.00045,4]
[313339350,1707171046075,-808.91210567,0.00045125,20]
[313339351,1707171046083,-153.71261787,0.00045197,5]
[313339352,1707171046093,-206.16002498,0.00045197,5]
[313339353,1707171046103,-109351.10580882,0.00045198,5]
[313339354,1707171046113,-500.0,0.00045794,4]
[313339355,1707171046123,-500.0,0.00045803,4]
[313339356,1707171046132,-500.0,0.00045812,4]
[313339357,1707171046141,-500.0,0.00045821,4]
[313339358,1707171046150,-500.0,0.0004583,4]
[313339359,1707171046159,-500.0,0.00045838,4]
[313339360,1707171046168,-500.0,0.00045847,4]
[313339361,1707171046177,-500.0,0.00045856,4]
[313339362,1707171046186,-500.0,0.00045865,4]
[313339363,1707171046195,-500.0,0.00045874,4]
[313339364,1707171046204,-500.0,0.00045882,4]
[313339365,1707171046213,-500.0,0.00045891,4]
[313339366,1707171046222,-500.0,0.000459,4]
[313339367,1707171046230,-62506.52396279,0.00046,4]
[313339368,1707171046242,-154.95,0.00046021,2]
[313339369,1707171046251,-13456.16657792,0.00046027,10]
[313339370,1707171046260,-473.79530619,0.00046027,5]
[313339371,1707171046269,-155.0,0.00046271,4]
[313339372,1707171046278,-394.41867568,0.00046414,5]
[313339373,1707171046287,-359.49588897,0.00046447,5]
[313339374,1707171046297,-172.734218,0.00046506,30]
[313339375,1707171046306,-12188.21248,0.00046506,30]
[313339376,1707171046315,-190.466183,0.00046506,30]
[313339377,1707171046325,-173.101964,0.00046506,30]
[313339378,1707171046334,-4204.092992,0.00046506,30]
[313339379,1707171046343,-172.57129,0.00046506,30]
[313339380,1707171046353,-292.588036,0.00046506,30]
[313339381,1707171046362,-450.0,0.00046575,2]
[313339382,1707171046371,-1391.74608918,0.00046575,7]
[313339383,1707171046380,-853.34751865,0.00046791,4]
[313339384,1707171046389,-162.69,0.00046839,10]
[313339385,1707171046398,-813.48,0.00046839,10]
[313339386,1707171046407,-3964.56,0.00046849,120]
[313339387,1707171046416,-171700.0,0.00047018,10]
[313339388,1707171046426,-167.0,0.00047075,2]
[313339389,1707171046435,-12188.21248,0.00047087,30]
[313339390,1707171046444,-4204.092992,0.00047087,30]
[313339391,1707171046453,-292.588036,0.00047087,30]
[313339392,1707171046463,-1101.0,0.0004749,2]
[313339393,1707171046472,-710.0,0.0004749,2]
[313339394,1707171046481,-37737.3345333,0.00047539,2]
[313339395,1707171046489,-1168.61,0.00047572,15]
[313339396,1707171046501,-12188.21248,0.00047668,30]
[313339397,1707171046510,-190.466183,0.00047668,30]
[313339398,1707171046520,-4204.092992,0.00047668,30]
[313339399,1707171046528,-292.588036,0.00047668,30]
[313339400,1707171046539,-1023.16380065,0.00047788,9]
[313339401,1707171046548,-1000.0,0.000479,2]
[313339402,1707171046557,-808.91210567,0.00047904,23]
[313339403,1707171046566,-800.0,0.00048,4]
[313339404,1707171046575,-1784.95,0.00048066,5]
[313339405,1707171046584,-12188.21248,0.0004825,30]
[313339406,1707171046593,-4204.092992,0.0004825,30]
[313339407,1707171046602,-292.588036,0.0004825,30]
[313339408,1707171046611,-319.57,0.000483,7]
[313339409,1707171046620,-498.88024,0.000485,2]
[313339410,1707171046628,-167.0,0.00048629,2]
[313339411,1707171046637,-1477.0,0.000487,117]
[313339412,1707171046646,-12188.21248,0.00048831,30]
[313339413,1707171046655,-190.466183,0.00048831,30]
[313339414,1707171046664,-4204.092992,0.00048831,30]
[313339415,1707171046673,-292.588036,0.00048831,30]
[313339416,1707171046682,-173.101964,0.00048831,30]
[313339417,1707171046691,-172.57129,0.00048831,30]
[313339418,1707171046699,-200.0,0.00048856,10]
[313339419,1707171046708,-400.0,0.0004897,3]
[313339420,1707171046717,-3029.2403701,0.00049089,14]
[313339421,1707171046726,-1076.0,0.0004919,2]
[313339422,1707171046735,-693.0,0.0004919,2]
[313339423,1707171046745,-1774.44,0.00049191,5]
[313339424,1707171046754,-37050.0398999,0.00049281,2]
[313339425,1707171046763,-563.74099268,0.00049315,31]
[313339426,1707171046772,-800.0,0.00049315,30]
[313339427,1707171046781,-800.0,0.00049315,30]
[313339428,1707171046790,-497.6411598,0.00049391,2]
[313339429,1707171046798,-428.71667088,0.00049999,5]
[313339430,1707171046807,-2810.2109882,0.0005,10]
[313339431,1707171046816,-2964.75430104,0.0005,4]
[313339432,1707171046825,-7877.60387408,0.0005,4]
[313339433,1707171046834,-2500.0,0.0005,120]
[313339434,1707171046843,-270.0615337,0.0005,4]
[313339435,1707171046852,-155.0,0.0005,4]
[313339436,1707171046862,-155.0,0.0005,4]
[313339437,1707171046872,-155.0,0.0005,4]
[313339438,1707171046883,-5357.97881477,0.0005,4]
[313339439,1707171046892,-5050.51,0.0005,50]
[313339440,1707171046901,-150.0,0.0005,30]
[313339441,1707171046910,-150.0,0.0005,30]
[313339442,1707171046922,-167.0,0.00050183,2]
[313339443,1707171046931,-2279.86726471,0.000502,120]
[313339444,1707171046940,-2279.86726471,0.000502,120]
[313339445,1707171046952,-2279.86726471,0.000502,120]
[313339446,1707171046963,-2279.86726471,0.000502,120]
[313339447,1707171046974,-2279.86726471,0.000502,120]
[313339448,1707171046983,-2279.86726471,0.000502,120]
[313339449,1707171046993,-2279.86726471,0.000502,120]
[313339450,1707171047004,-2279.86726471,0.000502,120]
[313339451,1707171047014,-2279.86726471,0.000502,120]
[313339452,1707171047024,-2279.86726471,0.000502,120]
[313339453,1707171047033,-2077.0,0.0005039,2]
[313339454,1707171047043,-1912.0,0.0005039,2]
[313339455,1707171047053,-49051.1683999,0.0005043,2]
[313339456,1707171047063,-31233.2807155,0.0005043,2]
[313339457,1707171047074,-927.499467,0.00050465,2]
[313339458,1707171047083,-4930.5335707,0.00050465,2]
[313339459,1707171047093,-29615.3402999,0.00050465,2]
[313339460,1707171047103,-3302.0,0.0005049,3]
[313339461,1707171047115,-2191.0,0.0005049,3]
[313339462,1707171047124,-239807.15248939,0.000505,3]
[313339463,1707171047134,-400.0,0.0005067,7]
[313339464,1707171047146,-300.0,0.0005067,7]
[313339465,1707171047155,-808.91210567,0.00050682,27]
[313339466,1707171047164,-1481.48584348,0.00050694,2]
[313339467,1707171047174,-1000.0,0.000507,2]
[313339468,1707171047184,-875.83916005,0.000507,45]
[313339469,1707171047194,-155.23329314,0.000507,45]
[313339470,1707171047203,-2949.43256975,0.000507,45]
[313339471,1707171047212,-300.0,0.000509,28]
[313339472,1707171047221,-200.0,0.000509,28]
[313339473,1707171047230,-1736.557777,0.000509,26]
[313339474,1707171047241,-400.0,0.0005097,7]
[313339475,1707171047252,-300.0,0.0005097,7]
[313339476,1707171047262,-153.71261787,0.00050999,10]
[313339477,1707171047271,-206.16002498,0.00050999,10]
[313339478,1707171047280,-149946.25,0.00051,120]
[313339479,1707171047290,-1481.48584348,0.00051047,2]
[313339480,1707171047299,-1168.61,0.00051308,120]
[313339481,1707171047310,-1023.16380065,0.00051344,12]
[313339482,1707171047320,-680.0,0.0005139,2]
[313339483,1707171047329,-437.0,0.0005139,2]
[313339484,1707171047338,-154.95,0.00051398,2]
[313339485,1707171047347,-200.0,0.000514,29]
[313339486,1707171047357,-1481.48584348,0.00051406,2]
[313339487,1707171047366,-308.18944054,0.00051498,4]
[313339488,1707171047375,-1309.9209624,0.00051534,2]
[313339489,1707171047385,-1481.48584348,0.0005154,2]
[313339490,1707171047394,-16421.42944879,0.0005173,4]
[313339491,1707171047403,-167.0,0.00051737,2]
[313339492,1707171047412,-3250.5,0.00051788,117]
[313339493,1707171047422,-191.0,0.0005179,2]
[313339494,1707171047432,-319.57,0.000518,7]
[313339495,1707171047441,-10391.0,0.0005189,2]
[313339496,1707171047451,-8225.0,0.0005189,2]
[313339497,1707171047461,-300.0,0.000519,30]
[313339498,1707171047470,-200.0,0.000519,30]
[313339499,1707171047480,-57901.3297333,0.00051964,2]
[313339500,1707171047489,-47819.3321333,0.00051964,2]
[313339501,1707171047500,-3074.47394403,0.00051964,2]
[313339502,1707171047516,-2119.734,0.00051964,2]
[313339503,1707171047639,-24704.21644492,0.00051964,2]
[313339504,1707171047651,-314.81489161,0.00051964,2]
[313339505,1707171047663,-446.4612524,0.00051964,2]
[313339506,1707171047674,-392.89694301,0.00051964,2]
[313339507,1707171047687,-5951.4479691,0.00051964,2]
[313339508,1707171047699,-6098.71797913,0.00051964,2]
[313339509,1707171047720,-253544.86034779,0.00022999,2]
[313339510,1707171047732,-14789.1902747,0.00022999,2]
[313339559,1707172231873,-159.81860373,0.000228,2]
[313339560,1707172231883,-30879.4459,0.000229,2]
[313339561,1707172231892,-617.0589,0.000229,2]
[313339562,1707172231901,-762.1725,0.000229,2]
[313339563,1707172231910,-300.0,0.00022999,2]
[313339564,1707172231919,-195.44200308,0.00022999,2]
[313339565,1707172231928,-324.08880532,0.00025,2]
[313339566,1707172231937,-204.0,0.00025878,2]
[313339567,1707172231946,-6604.7959,0.00029797,2]
[313339568,1707172231955,-7056.6,0.00029896,2]
[313339569,1707172231965,-73533.3799,0.00029897,2]
[313339570,1707172231974,-397.8618,0.00029897,2]
[313339571,1707172231983,-792.2189,0.00029897,2]
[313339572,1707172231992,-86366.51,0.00029897,2]
[313339573,1707172232000,-26136.0222,0.00029899,2]
[313339574,1707172232009,-291.51,0.00029899,2]
[313339575,1707172232018,-1404.17,0.00029899,2]
[313339576,1707172232027,-130515.81347552,0.00029997,2]
[313339577,1707172232037,-304.08770656,0.00029998,2]
[313339578,1707172232046,-4144.98007054,0.00029998,2]
[313339579,1707172232055,-33760.01709729,0.00029998,2]
[313339580,1707172232064,-679.8931593,0.00029999,2]
[313339581,1707172232074,-970.2760521,0.00029999,2]
[313339582,1707172232083,-117654.62339826,0.00029999,2]
[313339583,1707172232092,-1993.49,0.00029999,2]
[313339584,1707172232101,-73248.84606028,0.0003,4]
[313339585,1707172232110,-155.0,0.0003,2]
[313339586,1707172232119,-500.0,0.0003,2]
[313339587,1707172232132,-2338.0,0.000327,2]
[313339588,1707172232141,-274.48,0.00032943,2]
[313339589,1707172232150,-153.29,0.0003318,2]
[313339591,1707172232159,-152.56,0.00033553,2]
[313339593,1707172232168,-167.98,0.00034493,2]
[313339595,1707172232178,-274.48,0.00034587,2]
[313339597,1707172232187,-1000.0,0.00034829,2]
[313339599,1707172232196,-250.0,0.00034984,111]
[313339601,1707172232205,-152.56,0.00035301,2]
[313339603,1707172232213,-1000.0,0.00035516,120]
[313339605,1707172232222,-297.85803049,0.00036,2]
[313339607,1707172232231,-297.85803049,0.00036,2]
[313339609,1707172232240,-297.85803049,0.00036,2]
[313339612,1707172232250,-297.85803049,0.00036,2]
[313339615,1707172232259,-297.85803049,0.00036,2]
[313339618,1707172232268,-297.85803049,0.00036,2]
[313339621,1707172232277,-297.85803049,0.00036,2]
[313339625,1707172232286,-297.85803049,0.00036,2]
[313339628,1707172232296,-297.85803049,0.00036,2]
[313339630,1707172232306,-297.85803049,0.00036,2]
[313339632,1707172232315,-297.85803049,0.00036,2]
[313339634,1707172232324,-297.85803049,0.00036,2]
[313339636,1707172232334,-297.85803049,0.00036,2]
[313339656,1707172232502,-297.85803049,0.00036,2]
[313339658,1707172232515,-297.85803049,0.00036,2]
[313339659,1707172232524,-297.85803049,0.00036,2]
[313339660,1707172232533,-297.85803049,0.00036,2]
[313339661,1707172232541,-297.85803049,0.00036,2]
[313339662,1707172232550,-297.85803049,0.00036,2]
[313339663,1707172232559,-297.85803049,0.00036,2]
[313339664,1707172232568,-297.85803049,0.00036,2]
[313339665,1707172232577,-297.85803049,0.00036,2]
[313339666,1707172232586,-297.85803049,0.00036,2]
[313339667,1707172232595,-297.85803049,0.00036,2]
[313339668,1707172232605,-297.85803049,0.00036,2]
[313339669,1707172232614,-297.85803049,0.00036,2]
[313339670,1707172232623,-297.85803049,0.00036,2]
[313339671,1707172232632,-297.85803049,0.00036,2]
[313339672,1707172232641,-297.85803049,0.00036,2]
[313339673,1707172232650,-297.85803049,0.00036,2]
[313339674,1707172232660,-297.85803049,0.00036,2]
[313339675,1707172232669,-297.85803049,0.00036,2]
[313339676,1707172232679,-297.85803049,0.00036,2]
[313339677,1707172232688,-297.85803049,0.00036,2]
[313339678,1707172232698,-297.85803049,0.00036,2]
[313339679,1707172232707,-297.85803049,0.00036,2]
[313339680,1707172232716,-297.85803049,0.00036,2]
[313339681,1707172232726,-297.85803049,0.00036,2]
[313339682,1707172232736,-297.85803049,0.00036,2]
[313339683,1707172232745,-297.85803049,0.00036,2]
[313339684,1707172232755,-297.85803049,0.00036,2]
[313339685,1707172232764,-297.85803049,0.00036,2]
[313339686,1707172232774,-297.85803049,0.00036,2]
[313339687,1707172232783,-297.85803049,0.00036,2]
[313339688,1707172232792,-297.85803049,0.00036,2]
[313339689,1707172232801,-297.85803049,0.00036,2]
[313339690,1707172232811,-297.85803049,0.00036,2]
[313339691,1707172232820,-297.85803049,0.00036,2]
[313339692,1707172232830,-297.85803049,0.00036,2]
[313339693,1707172232841,-297.85803049,0.00036,2]
[313339694,1707172232851,-297.85803049,0.00036,2]
[313339695,1707172232860,-297.85803049,0.00036,2]
[313339696,1707172232870,-297.85803049,0.00036,2]
[313339697,1707172232879,-297.85803049,0.00036,2]
[313339698,1707172232888,-297.85803049,0.00036,2]
[313339699,1707172232897,-297.85803049,0.00036,2]
[313339700,1707172232907,-297.85803049,0.00036,2]
[313339701,1707172232915,-297.85803049,0.00036,2]
[313339702,1707172232924,-297.85803049,0.00036,2]
[313339703,1707172232934,-297.85803049,0.00036,2]
[313339704,1707172232943,-297.85803049,0.00036,2]
[313339705,1707172232952,-297.85803049,0.00036,2]
[313339706,1707172232962,-297.85803049,0.00036,2]
[313339707,1707172232970,-297.85803049,0.00036,2]
[313339708,1707172232979,-297.85803049,0.00036,2]
[313339709,1707172232989,-297.85803049,0.00036,2]
[313339710,1707172232998,-297.85803049,0.00036,2]
[313339711,1707172233007,-297.85803049,0.00036,2]
[313339712,1707172233016,-297.85803049,0.00036,2]
[313339713,1707172233025,-297.85803049,0.00036,2]
[313339714,1707172233034,-297.85803049,0.00036,2]
[313339715,1707172233043,-297.85803049,0.00036,2]
[313339716,1707172233052,-297.85803049,0.00036,2]
[313339717,1707172233061,-297.85803049,0.00036,2]
[313339718,1707172233070,-297.85803049,0.00036,2]
[313339719,1707172233087,-297.85803049,0.00036,2]
[313339720,1707172233100,-297.85803049,0.00036,2]
[313339721,1707172233109,-297.85803049,0.00036,2]
[313339722,1707172233119,-297.85803049,0.00036,2]
[313339723,1707172233128,-297.85803049,0.00036,2]
[313339724,1707172233138,-297.85803049,0.00036,2]
[313339725,1707172233147,-297.85803049,0.00036,2]
[313339726,1707172233157,-297.85803049,0.00036,2]
[313339727,1707172233167,-297.85803049,0.00036,2]
[313339728,1707172233176,-297.85803049,0.00036,2]
[313339729,1707172233186,-297.85803049,0.00036,2]
[313339730,1707172233196,-297.85803049,0.00036,2]
[313339731,1707172233205,-274.48,0.0003623,2]
[313339732,1707172233215,-250.0,0.00036264,2]
[313339733,1707172233224,-53217.03551089,0.00037,4]
[313339734,1707172233241,-1009.80580665,0.00037,4]
[313339735,1707172233253,-1042.42601603,0.00037,4]
[313339736,1707172233266,-1403.57398397,0.00037,4]
[313339737,1707172233278,-792.99802951,0.00037,4]
[313339738,1707172233289,-673.01,0.00037,4]
[313339739,1707172233301,-612.83195705,0.00037,4]
[313339740,1707172233359,-297.85803049,0.00036,2]
[313339741,1707172233369,-13289.22960951,0.00037,4]
[313339742,1707172233380,-1922.96638505,0.00037,4]
[313339743,1707172233391,-326.43046132,0.00037,4]
[313339744,1707172233403,-144.76047513,0.00037,4]
[313339745,1707172233415,-204.0,0.00037252,21]
[313339746,1707172233424,-159.81860373,0.000373,2]
[313339747,1707172233434,-1964.10765799,0.00037533,15]
[313339748,1707172233454,-5671.18976411,0.00037533,15]
[313339749,1707172233464,-3365.36825167,0.00037533,15]
[313339750,1707172233473,-4715.56311575,0.00037533,15]
[313339751,1707172233483,-168.1,0.00037645,2]
[313339752,1707172233492,-274.48,0.00037874,2]
[313339753,1707172233502,-82537.7309161,0.000379,2]
[313339754,1707172233511,-170.52730015,0.0003888,2]
[313339755,1707172233520,-170.5273001,0.0003888,2]
[313339756,1707172233529,-1000.0,0.00039183,2]
[313339757,1707172233539,-274.48,0.00039518,2]
[313339758,1707172233548,-715.65,0.0003999,10]
[313339759,1707172233557,-596.37,0.0003999,10]
[313339760,1707172233567,-496.98,0.0003999,10]
[313339761,1707172233577,-170.23003158,0.0004,2]
[313339762,1707172233588,-27054.2141435,0.0004,120]
[313339763,1707172233597,-170.5273001,0.00040239,2]
[313339764,1707172233607,-1982.28,0.00040625,2]
[313339765,1707172233616,-163.95,0.0004065,2]
[313339766,1707172233625,-250.0,0.00040665,2]
[313339767,1707172233635,-1000.0,0.0004089,2]
[313339768,1707172233644,-327.8410104,0.00041,4]
[313339769,1707172233654,-919.96615275,0.00041096,14]
[313339770,1707172233664,-150.0,0.0004115,2]
[313339771,1707172233673,-274.48,0.00041162,2]
[313339772,1707172233682,-153.29,0.00041782,2]
[313339773,1707172233692,-500.0,0.00042774,120]
[313339774,1707172233701,-446.25255288,0.00043,7]
[313339775,1707172233710,-1000.0,0.00043,2]
[313339776,1707172233720,-1000.0,0.00043537,2]
[313339777,1707172233729,-150.0,0.00043556,30]
[313339778,1707172233739,-876.45,0.00043836,15]
[313339779,1707172233748,-309.79714423,0.0004398,118]
[313339780,1707172233758,-170.5273001,0.0004546,7]
[313339781,1707172233770,-1000.0,0.000458,2]
[313339782,1707172233780,-268.38046197,0.00046381,5]
[313339783,1707172233789,-304.61500846,0.00046381,5]
[313339784,1707172233799,-876.45,0.00047572,15]
[313339785,1707172233808,-1000.0,0.0004789,2]
[313339786,1707172233818,-800.0,0.00048,4]
[313339787,1707172233827,-488.0,0.0004829,2]
[313339788,1707172233837,-153.30459871,0.0004832,38]
[313339789,1707172233847,-180.26557949,0.0004832,24]
[313339790,1707172233857,-8453.28828752,0.0004832,2]
[313339791,1707172233867,-1099.09342508,0.0004832,2]
[313339792,1707172233877,-161.78242115,0.0004832,24]
[313339793,1707172233887,-27169.0,0.0004839,2]
[313339794,1707172233897,-6842.0,0.0004839,2]
[313339795,1707172233906,-82537.7309161,0.000484,11]
[313339796,1707172233916,-82537.7309161,0.000484,11]
[313339797,1707172233925,-34130.49326237,0.0004841,11]
[313339798,1707172233978,-459.75323735,0.0004841,11]
[313339799,1707172233989,-468.15,0.0004841,11]
[313339800,1707172234001,-576.35796011,0.0004841,11]
[313339801,1707172234016,-297.85803049,0.00036,2]
[313339802,1707172234025,-952.14196951,0.0004841,11]
[313339803,1707172234036,-547.03,0.0004841,11]
[313339805,1707172237857,-621.94,0.00029797,2]
[313339806,1707172237869,-1878.06,0.00029797,2]
[313339807,1707172237879,-297.85803049,0.00036,2]
[313339808,1707172237888,-297.85803049,0.00036,2]
[313339809,1707172237899,-297.85803049,0.00036,2]
[313339810,1707172237909,-297.85803049,0.00036,2]
[313339811,1707172237919,-297.85803049,0.00036,2]
[313339812,1707172237927,-297.85803049,0.00036,2]
[313339813,1707172237938,-297.85803049,0.00036,2]
[313339814,1707172237947,-297.85803049,0.00036,2]
[313339815,1707172237958,-50.0198443,0.00036,2]
[313339816,1707172237970,-247.83818619,0.00036,2]
[313339817,1707172237981,-208.77020132,0.00036,2]
[313339818,1707172238112,-89.08782917,0.00036,2]
[313339819,1707172238121,-162.51931448,0.00036,2]
[313339820,1707172238135,-135.33871601,0.00036,2]
[313339821,1707172238145,-414.15,0.0003999,10]
[313339822,1707172238154,-273.00145946,0.0004841,11]
[313339823,1707172238166,-397.86579353,0.0004841,11]
[313339824,1707172238191,-19908.22222559,0.0004841,11]
[313339890,1707172240492,-18586.60263915,0.0004841,11]
[313339891,1707172240504,-32566.27368448,0.0004841,11]
[313339892,1707172240515,-548.73423759,0.0004841,11]
[313339893,1707172240547,-2200.27018171,0.0004841,11]
[313339894,1707172240559,-669.3090582,0.0004841,11]
[313339895,1707172240603,-410.40491062,0.0004841,11]
[313339896,1707172240615,-779.65,0.0004841,11]
[313339897,1707172240627,-849.048254,0.0004841,11]
[313339911,1707172242906,-300.175,0.000484,30]
[313339912,1707172242960,-2955.80687937,0.000484,30]
[313339913,1707172243015,-4261.0962907,0.000484,30]
[313339914,1707172243027,-979.1899994,0.000484,30]
[313339915,1707172243039,-352.73067606,0.000484,30]
[313339916,1707172243071,-553.84670996,0.000484,30]
[313339921,1707172243324,-0.87908134,0.000484,30]
[313339924,1707172246190,-1214.97965257,0.000484,30]
[313340077,1707173005760,290.53748816,0.00022,4]
[313340078,1707173065375,403.6003256,0.0002134,2]
[313340079,1707173069307,868.87901652,0.00022,2]
[313340080,1707173071121,362.44851157,0.00022,2]
[313340081,1707173071437,535.16707393,0.00022,2]
[313340082,1707173071467,500.0,0.00022,2]
[313340083,1707173073375,809.46129358,0.00022,2]
[313340084,1707173083241,403.6003256,0.0002134,2]
[313340085,1707173085113,362.19808982,0.00022,2]
[313340086,1707173085309,685.49570889,0.00022,2]
[313340087,1707173085380,809.46129358,0.00022,2]
[313340088,1707173089442,535.16707393,0.00022,2]
[313340089,1707173089470,500.0,0.00022,2]
[313340090,1707173103382,809.46129358,0.00022,2]
[313340091,1707173103440,535.16707393,0.00022,2]
[313340092,1707173109455,500.0,0.00022,2]
[313340093,1707173123406,809.46129358,0.00022,2]
[313340094,1707173125537,535.16707393,0.00022,2]
[313340095,1707173127453,500.0,0.00022,2]
[313340096,1707173141453,530.73182187,0.00022,2]
[313340097,1707173143388,809.46129358,0.00022,2]
[313340098,1707173145459,500.0,0.00022,2]
[313340099,1707173159400,808.3439048,0.00022,2]
[313340100,1707173163469,500.0,0.00022,2]
[313340101,1707173193106,-234.45594829,0.00022991,2]
[313340108,1707173432197,-313.22549663,0.00022962,2]
[313340109,1707173432306,-249.44837653,0.00022962,2]
[313340110,1707173432315,-733.19570899,0.00022963,2]
[313340111,1707173432324,-624.2401785,0.00022964,2]
[313340112,1707173432334,-151.97986891,0.00022968,2]
[313340113,1707173432343,-187.04510918,0.00022991,2]
[313340114,1707173432352,-234.45594829,0.00022998,2]
[313340115,1707173432361,-2262.29947425,0.00022999,2]
[313340116,1707173432370,-150.0,0.00023,2]
[313340117,1707173432380,-536.00973547,0.00026814,2]
[313340118,1707173432389,-156.36,0.00028587,2]
[313340119,1707173432399,-168.82,0.0002917,2]
[313340120,1707173432408,-214.93,0.00029536,2]
[313340121,1707173432417,-641.24878853,0.00029595,2]
[313340122,1707173432431,-1904.53326151,0.00029595,2]
[313340123,1707173432443,-308.807424,0.00029595,2]
[313340137,1707173438086,-478.2987475,0.00029595,2]
[313340138,1707173438141,-467.91216912,0.00029595,2]
[313340139,1707173438226,-414.09960934,0.00029595,2]
[313340140,1707173438236,-157.87482329,0.00029597,2]
[313340141,1707173438246,-312.83,0.0002966,2]
[313340142,1707173438256,-436.36,0.00029695,2]
[313340143,1707173438265,-1548.8558,0.00029695,2]
[313340144,1707173438275,-335.52507438,0.00029699,2]
[313340145,1707173438285,-273.06641404,0.000297,6]
[313340146,1707173438294,-6507.30529344,0.000297,2]
[313340147,1707173438306,-1123.23796047,0.000297,2]
[313340148,1707173438320,-3687.29843367,0.000297,2]
[313340149,1707173438332,-2733.36764432,0.000297,2]
[313340150,1707173438349,-346.78449269,0.000297,2]
[313340151,1707173438365,-1543.32675736,0.000297,2]
[313340152,1707173438378,-3279.9314489,0.000297,2]
[313340153,1707173438390,-432.99651565,0.000297,2]
[313340212,1707173441476,-4214.9,0.000297,2]
[313340218,1707173443067,-744.68354663,0.000297,2]
[313340224,1707173443280,-39569.07790687,0.000297,2]
[313340225,1707173443291,-4939.4,0.000297,2]
[313340226,1707173443301,-21472.76,0.000297,2]